bitfinex/quotes_SOLUSD_20241020
["timestamp","ask_amount","ask_price","bid_price","bid_amount"]
[1729414041818,0.67401384,158.74,158.71,22.052]
[1729414042218,0.67401384,158.74,158.72,6.3002]
[1729414043729,0.67401384,158.74,158.73,22.2812]
[1729414048218,0.67401384,158.74,158.73,15.9812]
[1729414048421,0.67401384,158.74,158.72,22.0511]
[1729414056325,0.67401384,158.74,158.69,15.9812]
[1729414056529,0.67401384,158.74,158.7,6.3011]
[1729414058118,30.076884,158.73,158.69,15.9812]
[1729414058439,30.076884,158.73,158.68,22.0559]
[1729414062639,23.776884,158.73,158.68,15.7543]
[1729414062821,6.3005,158.72,158.68,15.7543]
[1729414083866,6.3011,158.71,158.67,0.6072458]
[1729414086336,6.3004,158.72,158.67,6.9093458]
[1729414090349,23.776884,158.71,158.67,0.6072458]
[1729414090556,6.3017,158.69,158.67,0.6072458]
[1729414091255,6.3016,158.69,158.67,0.6072458]
[1729414091451,30.0,158.68,158.67,0.6072458]
[1729414093767,53.776884,158.68,158.67,0.6072458]
[1729414096451,60.078784,158.68,158.67,0.6072458]
[1729414097476,53.776884,158.68,158.67,0.6072458]
[1729414103580,60.078784,158.68,158.67,0.6072458]
[1729414109982,30.078784,158.68,158.67,0.6072458]
[1729414112755,60.078784,158.68,158.67,0.6072458]
[1729414129602,80.078784,158.68,158.67,0.6072458]
[1729414130174,80.178784,158.68,158.67,0.6072458]
[1729414130893,80.078784,158.68,158.67,0.6072458]
[1729414131267,80.178784,158.68,158.67,0.6072458]
[1729414132185,80.078784,158.68,158.67,0.6072458]
[1729414138085,60.078784,158.68,158.67,0.6072458]
[1729414153989,30.0,158.68,158.67,0.6072458]
[1729414155104,23.776884,158.68,158.67,0.6072458]
[1729414155319,30.078784,158.68,158.67,0.6072458]
[1729414156917,60.078784,158.68,158.67,0.6072458]
[1729414158022,80.078784,158.68,158.67,0.6072458]
[1729414176999,80.71943713,158.68,158.67,0.6072458]
[1729414185020,80.91943713,158.68,158.67,4.58e-05]
[1729414185209,80.81943713,158.68,158.67,4.58e-05]
[1729414185409,80.91943713,158.68,158.67,4.58e-05]
[1729414186817,80.81943713,158.68,158.67,4.58e-05]
[1729414187118,80.91943713,158.68,158.67,4.58e-05]
[1729414191932,80.81943713,158.68,158.67,4.58e-05]
[1729414192226,80.91943713,158.68,158.67,4.58e-05]
[1729414194515,0.1,158.64,158.55,0.2]
[1729414194715,22.137,158.67,158.55,0.2]
[1729414194716,20.0,158.62,158.55,0.2]
[1729414195038,30.2,158.66,158.56,28.4778]
[1729414195039,6.305,158.61,158.56,28.4778]
[1729414195733,30.0,158.6,158.56,28.4778]
[1729414196341,6.94643773,158.6,158.56,22.1711]
[1729414196911,23.776884,158.59,158.56,22.1711]
[1729414197409,23.776884,158.56,158.55,0.2]
[1729414197614,0.64093773,158.6,158.55,0.2]
[1729414197814,23.776884,158.57,158.55,0.2]
[1729414210642,30.083584,158.56,158.55,0.2]
[1729414211948,30.71647636,158.56,158.55,0.2]
[1729414212730,24.40977636,158.56,158.55,0.2]
[1729414213149,30.71647636,158.56,158.55,0.2]
[1729414229055,0.63289236,158.56,158.55,0.2]
[1729414240650,24.40977636,158.56,158.55,0.2]
[1729414248482,30.71647636,158.56,158.55,0.2]
[1729414248864,60.71647636,158.56,158.55,0.2]
[1729414255384,97.06517636,158.56,158.55,0.2]
[1729414257382,97.16517636,158.56,158.55,0.2]
[1729414266980,97.16517636,158.56,158.52,0.6072458]
[1729414266981,50.184784,158.53,158.52,0.6072458]
[1729414267376,57.15243636,158.53,158.52,4.58e-05]
[1729414267576,50.284784,158.53,158.52,4.58e-05]
[1729414267879,57.25243636,158.53,158.52,4.58e-05]
[1729414268078,87.25243636,158.53,158.52,4.58e-05]
[1729414269301,87.25243636,158.53,158.41,15.7808]
[1729414269302,23.776884,158.45,158.41,15.7808]
[1729414270192,24.4228967,158.45,158.41,15.7808]
[1729414270498,24.4228967,158.45,158.42,6.3122]
[1729414271008,24.4228967,158.45,158.38,6.4865]
[1729414271300,0.6460127,158.45,158.44,6.3115]
[1729414272195,0.6460127,158.45,158.4,0.1]
[1729414272399,0.6460127,158.45,158.43,6.3116]
[1729414274003,23.776884,158.44,158.38,16.2141]
[1729414274403,23.776884,158.44,158.41,15.7816]
[1729414274604,23.776884,158.44,158.41,22.0939]
[1729414275699,23.776884,158.44,158.41,15.7816]
[1729414275892,23.061973,158.44,158.42,6.3119]
[1729414279907,23.061973,158.44,158.41,15.7816]
[1729414280090,23.061973,158.44,158.41,22.0943]
[1729414283411,23.061973,158.44,158.42,6.3123]
[1729414284290,23.061973,158.44,158.38,15.7847]
[1729414285391,29.373473,158.44,158.39,6.3132]
[1729414286321,23.061973,158.44,158.38,37.9102]
[1729414286631,23.061973,158.44,158.41,6.3124]
[1729414287218,23.061973,158.44,158.39,15.7838]
[1729414287396,23.061973,158.44,158.4,6.313]
[1729414288618,23.061973,158.44,158.39,15.7838]
[1729414288619,29.373573,158.44,158.39,15.7838]
[1729414289004,23.061973,158.44,158.4,6.313]
[1729414289597,23.061973,158.44,158.38,15.8115]
[1729414289805,23.061973,158.44,158.42,6.3122]
[1729414291400,23.061973,158.44,158.41,22.0941]
[1729414299127,23.061973,158.44,158.43,6.3119]
[1729414299711,23.061973,158.44,158.42,15.7807]
[1729414299909,23.061973,158.44,158.42,22.0929]
[1729414305533,0.6460127,158.45,158.44,6.3115]
[1729414305713,9.52417986,158.48,158.46,6.3105]
[1729414307432,23.776884,158.47,158.42,0.1]
[1729414307614,24.4275125,158.47,158.46,6.3107]
[1729414310233,23.776884,158.47,158.46,6.3107]
[1729414310627,23.776884,158.51,158.43,15.1895]
[1729414310837,45.9955542,158.52,158.43,15.1895]
[1729414310838,45.9955542,158.52,158.48,6.3095]
[1729414311016,29.9999542,158.52,158.45,0.1]
[1729414311332,30.65043221,158.52,158.45,0.1]
[1729414311528,30.65043221,158.52,158.46,0.1]
[1729414311722,30.65043221,158.52,158.45,0.1]
[1729414311930,30.65043221,158.52,158.46,0.1]
[1729414312437,30.65043221,158.52,158.5,6.3088]
[1729414316117,30.65043221,158.52,158.46,31.6537]
[1729414316315,54.42731621,158.52,158.51,6.3087]
[1729414322239,30.65043221,158.52,158.51,6.3087]
[1729414327245,29.9999542,158.52,158.51,6.3087]
[1729414327831,29.9999542,158.52,158.51,6.4087]
[1729414333823,29.9999542,158.52,158.51,6.3087]
[1729414334028,29.9999542,158.52,158.51,6.4087]
[1729414334827,29.9999542,158.52,158.51,6.3087]
[1729414335029,29.9999542,158.52,158.51,6.4087]
[1729414337547,29.9999542,158.52,158.51,6.3087]
[1729414339257,29.9999542,158.52,158.49,15.7728]
[1729414339437,29.9999542,158.52,158.49,22.0822]
[1729414355858,30.69140843,158.52,158.49,22.0822]
[1729414358361,23.776884,158.51,158.49,15.7728]
[1729414360271,30.69140843,158.52,158.49,15.7728]
[1729414360442,30.69140843,158.52,158.49,22.0822]
[1729414367693,30.085684,158.51,158.46,6.3106]
[1729414368971,30.085684,158.51,158.47,6.3103]
[1729414369282,23.776884,158.51,158.44,0.1]
[1729414369578,23.776884,158.51,158.47,15.7757]
[1729414370464,30.085584,158.51,158.47,15.7757]
[1729414370792,30.085584,158.51,158.47,22.0859]
[1729414376691,6.3092,158.5,158.46,6.3106]
[1729414376869,23.776884,158.49,158.46,6.3106]
[1729414378495,24.46849359,158.49,158.46,6.3106]
[1729414381877,30.69140843,158.52,158.5,6.309]
[1729414384697,30.69140843,158.52,158.46,0.1]
[1729414384893,30.69140843,158.52,158.49,6.3094]
[1729414389473,30.69140843,158.52,158.5,6.3091]
[1729414389884,30.69140843,158.52,158.51,6.3087]
[1729414390800,29.9999542,158.52,158.51,6.4087]
[1729414401207,29.9999542,158.52,158.51,6.3087]
[1729414401383,29.9999542,158.52,158.51,6.4087]
[1729414412907,29.9999542,158.52,158.51,6.3087]
[1729414413108,29.9999542,158.52,158.51,6.4087]
[1729414413616,29.9999542,158.52,158.51,6.3087]
[1729414413822,29.9999542,158.52,158.51,6.4087]
[1729414421928,29.9999542,158.52,158.51,6.5087]
[1729414423302,29.9999542,158.52,158.51,6.4087]
[1729414423815,29.9999542,158.52,158.51,6.5087]
[1729414450736,18.4456542,158.52,158.51,33.99571041]
[1729414457122,18.4456542,158.52,158.51,13.99571041]
[1729414457323,18.4456542,158.52,158.51,33.99571041]
[1729414482761,5.83261958,158.52,158.51,33.99571041]
[1729414491876,5.83261958,158.52,158.51,33.28079941]
[1729414493372,2.08421958,158.52,158.51,57.05768341]
[1729414493552,1.958e-05,158.52,158.51,57.05768341]
[1729414494675,1.958e-05,158.52,158.51,62.08493647]
[1729414495277,1.958e-05,158.52,158.51,57.05768341]
[1729414495859,6.5638,158.62,158.61,6.3047]
[1729414503278,7.29504664,158.62,158.6,6.305]
[1729414503479,7.29504664,158.62,158.59,22.0693]
[1729414504686,7.29504664,158.62,158.59,15.7639]
[1729414504877,7.29504664,158.62,158.6,6.3051]
[1729414506079,7.29504664,158.62,158.61,6.3047]
[1729414507970,0.73124664,158.62,158.61,6.3047]
[1729414508172,22.0465,158.67,158.65,6.303]
[1729414508593,22.0465,158.67,158.65,6.3031]
[1729414508964,22.0465,158.67,158.64,15.7589]
[1729414509277,22.0465,158.67,158.66,6.3027]
[1729414510490,22.0465,158.71,158.67,6.3021]
[1729414511278,22.77723588,158.71,158.7,6.3011]
[1729414511481,22.77723588,158.71,158.64,31.7162]
[1729414511679,22.77723588,158.71,158.69,6.3015]
[1729414512573,22.77723588,158.71,158.68,22.0564]
[1729414516395,22.77723588,158.71,158.69,6.3015]
[1729414516599,22.77723588,158.71,158.7,6.3011]
[1729414517275,22.77723588,158.71,158.69,6.3015]
[1729414517485,22.77723588,158.71,158.7,6.3011]
[1729414517888,16.12273588,158.71,158.7,6.3011]
[1729414518082,0.73073588,158.71,158.7,6.3011]
[1729414534705,22.375,158.75,158.68,0.1]
[1729414534908,22.375,158.75,158.71,6.3006]
[1729414537186,16.1168,158.75,158.74,6.2996]
[1729414537399,0.78312125,158.76,158.74,6.2996]
[1729414539299,0.78312125,158.76,158.73,15.7497]
[1729414539482,0.78312125,158.76,158.74,6.2996]
[1729414551898,0.78312125,158.76,158.75,6.2992]
[1729414552797,22.1984,158.83,158.78,6.298]
[1729414553599,22.1984,158.83,158.79,6.2973]
[1729414554894,22.98332428,158.83,158.79,6.2973]
[1729414555518,22.98332428,158.83,158.81,6.2967]
[1729414555718,22.98332428,158.83,158.8,22.04]
[1729414556618,22.98332428,158.83,158.8,15.7429]
[1729414556815,30.073284,158.82,158.77,6.2981]
[1729414557534,30.0,158.8,158.77,6.2981]
[1729414557701,30.78481451,158.8,158.77,6.2981]
[1729414558617,30.78481451,158.8,158.78,6.2979]
[1729414558920,0.78481451,158.8,158.78,6.2979]
[1729414573815,0.78481451,158.8,158.76,15.7465]
[1729414573816,0.78481451,158.8,158.74,31.598]
[1729414574021,0.78481451,158.8,158.78,6.2978]
[1729414574842,30.0,158.79,158.78,6.2978]
[1729414577240,30.0,158.79,158.77,15.7451]
[1729414579630,30.0,158.79,158.77,22.0434]
[1729414582217,0.78481451,158.8,158.77,22.0434]
[1729414591235,7.08231451,158.8,158.74,15.7488]
[1729414591541,7.08231451,158.8,158.75,6.2988]
[1729414592224,7.08231451,158.8,158.76,6.2987]
[1729414594533,0.78481451,158.8,158.76,6.2987]
[1729414604347,30.0,158.77,158.76,6.2987]
[1729414617071,30.0,158.78,158.76,6.2987]
[1729414619745,30.0,158.77,158.76,6.2987]
[1729414624766,30.0,158.77,158.75,15.7479]
[1729414626064,30.82390331,158.77,158.75,15.7479]
[1729414632087,30.0,158.76,158.75,15.7479]
[1729414659799,0.82390331,158.77,158.75,15.7479]
[1729414668711,23.776884,158.76,158.72,6.3002]
[1729414672902,22.6508998,158.85,158.71,46.8597]
[1729414673082,6.2981,158.78,158.73,22.0499]
[1729414673284,6.2985,158.77,158.73,15.75]
[1729414673489,6.2992,158.75,158.7,6.3008]
[1729414673698,6.2988,158.76,158.71,6.3007]
[1729414674205,23.776884,158.75,158.71,6.3007]
[1729414677723,23.776884,158.76,158.72,6.3003]
[1729414689621,23.776884,158.74,158.7,15.7529]
[1729414689924,24.63297059,158.74,158.71,6.3007]
[1729414690324,24.63297059,158.74,158.7,22.054]
[1729414692404,30.0,158.73,158.7,22.054]
[1729414703832,30.0,158.73,158.7,15.7529]
[1729414704004,30.0,158.73,158.71,6.3007]
[1729414704208,30.0,158.73,158.72,6.3004]
[1729414704719,30.87564657,158.73,158.71,15.7515]
[1729414705241,0.87564657,158.73,158.72,6.3004]
[1729414711823,23.776884,158.76,158.72,6.3004]
[1729414715235,30.075684,158.76,158.71,22.0522]
[1729414715541,24.65240933,158.74,158.71,15.7515]
[1729414725654,24.65240933,158.74,158.71,22.0522]
[1729414726653,24.65240933,158.74,158.71,15.7515]
[1729414748474,0.87552533,158.74,158.71,22.052]
[1729414748855,0.87552533,158.74,158.71,15.7515]
[1729414749068,0.87552533,158.74,158.72,6.3003]
[1729414750377,0.87552533,158.74,158.71,22.0522]
[1729414761766,13.49434353,158.77,158.7,15.9145]
[1729414761971,13.49434353,158.77,158.75,6.299]
[1729414767165,13.49434353,158.77,158.76,6.2988]
[1729414784102,0.87398263,158.77,158.76,6.2988]
[1729414788678,6.3529,158.83,158.78,6.2977]
[1729414789790,30.073584,158.82,158.76,6.2985]
[1729414791004,30.073584,158.82,158.77,6.2983]
[1729414800885,23.776884,158.82,158.71,0.1]
[1729414801092,6.2976,158.79,158.74,6.2992]
[1729414801311,23.776884,158.78,158.74,6.2992]
[1729414805731,23.776884,158.78,158.71,0.1]
[1729414806021,23.776884,158.79,158.75,6.2988]
[1729414810325,30.074484,158.79,158.75,6.2988]
[1729414810527,30.074484,158.79,158.74,22.0477]
[1729414823126,30.90949868,158.79,158.74,22.0477]
[1729414827642,30.21520488,158.79,158.74,22.0477]
[1729414834751,23.776884,158.77,158.74,15.7482]
[1729414838444,23.776884,158.77,158.76,6.2988]
[1729414838748,23.776884,158.78,158.71,31.504]
[1729414839449,23.776884,158.78,158.74,22.0475]
[1729414840629,23.776884,158.78,158.76,6.2984]
[1729414840955,0.83501468,158.79,158.76,6.2984]
[1729414842830,6.2968,158.81,158.76,6.2984]
[1729414843034,23.776884,158.8,158.76,6.2984]
[1729414846444,24.60583264,158.8,158.76,6.2984]
[1729414847569,24.60583264,158.8,158.76,6.2984]
[1729414860176,24.60583264,158.8,158.77,6.2983]
[1729414868079,6.2977,158.79,158.74,6.2995]
[1729414868256,23.776884,158.78,158.74,6.2995]
[1729414868459,30.074984,158.78,158.74,6.2995]
[1729414870278,30.074984,158.78,158.73,15.7498]
[1729414870484,23.776884,158.79,158.7,47.4204]
[1729414870657,23.776884,158.76,158.71,6.3006]
[1729414870977,24.58834918,158.76,158.71,6.3006]
[1729414872063,24.58834918,158.76,158.7,15.7527]
[1729414872372,30.0,158.73,158.7,15.7527]
[1729414873782,30.81155798,158.73,158.7,15.7527]
[1729414873972,23.776884,158.72,158.7,15.7527]
[1729414874288,30.0,158.71,158.7,15.7527]
[1729414874971,30.0,158.71,158.67,6.3019]
[1729414875466,23.776884,158.7,158.67,6.3019]
[1729414875663,30.0,158.69,158.66,22.0588]
[1729414881275,23.776884,158.68,158.66,15.7562]
[1729414881578,30.0,158.67,158.66,15.7562]
[1729414887685,29.81095217,158.67,158.66,15.7562]
[1729414890489,23.776884,158.66,158.63,6.3035]
[1729414890691,30.0,158.65,158.62,15.7601]
[1729414890897,23.776884,158.64,158.62,15.7601]
[1729414891188,24.53941399,158.64,158.6,6.305]
[1729414891572,30.0,158.63,158.6,6.305]
[1729414892170,30.0,158.63,158.61,6.3047]
[1729414895886,30.0,158.63,158.58,0.1]
[1729414896091,6.3016,158.69,158.58,51.7298]
[1729414896395,6.3016,158.69,158.64,6.3035]
[1729414897210,6.302,158.68,158.63,6.3039]
[1729414897423,23.776884,158.67,158.63,6.3039]
[1729414897595,24.53933213,158.67,158.63,6.3039]
[1729414901517,24.53933213,158.67,158.64,6.3032]
[1729414903603,0.76244813,158.67,158.65,6.3028]
[1729414916192,0.76244813,158.67,158.66,6.3027]
[1729414933214,23.776884,158.69,158.66,6.3027]
[1729414933512,23.776884,158.7,158.66,6.3027]
[1729414935895,24.41459969,158.7,158.66,6.3027]
[1729414937814,6.3002,158.73,158.69,6.3015]
[1729414938404,6.9378093,158.73,158.69,6.3015]
[1729414939507,23.776884,158.72,158.69,6.3015]
[1729414941529,0.6376093,158.73,158.63,0.1]
[1729414941530,0.6376093,158.73,158.71,6.3006]
[1729414944003,0.6376093,158.73,158.72,6.3004]
[1729414944209,22.4958,158.78,158.75,6.2989]
[1729414944723,16.2075,158.78,158.75,6.2989]
[1729414945226,16.84497792,158.78,158.75,6.2989]
[1729414945604,16.84497792,158.78,158.69,0.2]
[1729414945819,0.63747792,158.78,158.76,6.2987]
[1729414946721,0.63747792,158.78,158.77,6.2984]
[1729414949716,0.63747792,158.78,158.75,22.047]
[1729414950227,23.776884,158.77,158.75,22.047]
[1729414950416,23.776884,158.77,158.74,6.2993]
[1729414950607,30.075284,158.77,158.72,15.7509]
[1729414951021,16.2075,158.76,158.72,15.7509]
[1729414951204,23.776884,158.75,158.72,15.7509]
[1729414951814,23.776884,158.75,158.72,22.0511]
[1729414952516,24.41435456,158.75,158.72,22.0511]
[1729414955314,24.41435456,158.75,158.72,15.7509]
[1729414955518,0.63747056,158.75,158.74,6.2996]
[1729414955724,0.63747792,158.78,158.75,6.2991]
[1729414956633,23.776884,158.77,158.75,6.2991]
[1729414964317,0.63747792,158.78,158.76,6.2988]
[1729414964517,0.63747792,158.78,158.77,6.2984]
[1729414972669,23.776884,158.81,158.79,6.2974]
[1729414973140,10.30452212,158.82,158.79,6.2974]
[1729414974438,23.776884,158.81,158.79,6.2974]
[1729415006159,23.776884,158.81,158.74,31.498]
[1729415006363,23.776884,158.81,158.77,6.2983]
[1729415011584,23.776884,158.81,158.75,6.2992]
[1729415011762,23.776884,158.81,158.74,31.498]
[1729415012085,0.65452815,158.82,158.8,6.2969]
[1729415012465,0.65452815,158.82,158.81,6.2968]
[1729415016795,0.65452815,158.82,158.8,15.7426]
[1729415018469,0.65452815,158.82,158.8,22.0398]
[1729415019287,23.776884,158.84,158.8,22.0398]
[1729415037190,23.776884,158.84,158.8,22.0398]
[1729415055037,30.072484,158.84,158.8,22.0398]
[1729415067610,23.776884,158.85,158.8,22.0398]
[1729415071626,0.5005522,158.88,158.76,16.5037]
[1729415071806,6.7948522,158.88,158.83,6.2959]
[1729415072529,0.5005522,158.88,158.84,6.2952]
[1729415073021,24.2774362,158.88,158.84,6.2952]
[1729415073220,0.5005522,158.88,158.85,6.295]
[1729415074848,0.5005522,158.88,158.86,6.2947]
[1729415082229,6.2948,158.87,158.82,6.2963]
[1729415082525,0.5005522,158.88,158.81,32.2456]
[1729415082526,23.776884,158.84,158.81,15.7419]
[1729415083678,23.776884,158.84,158.81,15.7419]
[1729415083966,23.776884,158.84,158.76,21.901]
[1729415084149,30.072484,158.84,158.78,15.745]
[1729415084466,30.072484,158.84,158.79,6.2975]
[1729415088975,23.776884,158.81,158.78,15.745]
[1729415093775,23.776884,158.81,158.68,43.776884]
[1729415093776,0.1,158.79,158.68,43.776884]
[1729415093983,0.2,158.78,158.68,20.0]
[1729415094283,0.1,158.77,158.68,20.0]
[1729415095455,0.2,158.76,158.68,20.0]
[1729415095667,0.2,158.76,158.66,20.0]
[1729415096752,0.2,158.76,158.68,20.0]
[1729415097144,0.2,158.75,158.67,15.3348]
[1729415097356,0.1,158.73,158.67,15.3348]
[1729415104345,0.2,158.74,158.67,15.3348]
[1729415104655,0.1,158.73,158.67,15.3348]
[1729415107369,0.2,158.74,158.67,15.3348]
[1729415107559,0.1,158.73,158.67,15.3348]
[1729415110991,0.1,158.74,158.67,15.3348]
[1729415111483,0.1,158.77,158.68,20.0]
[1729415111900,0.1,158.76,158.68,20.0]
[1729415113167,0.1,158.75,158.67,21.5318]
[1729415114277,0.1,158.76,158.67,21.5318]
[1729415114476,0.1,158.75,158.67,21.5318]
[1729415115285,0.1,158.76,158.67,21.5318]
[1729415115472,0.1,158.75,158.67,21.5318]
[1729415117075,0.2,158.75,158.67,21.5318]
[1729415117577,0.1,158.74,158.67,21.5318]
[1729415119377,0.1,158.75,158.67,21.5318]
[1729415120064,0.1,158.74,158.67,21.5318]
[1729415120683,0.1,158.75,158.67,21.5318]
[1729415122980,0.1,158.74,158.67,21.5318]
[1729415123886,0.1,158.74,158.67,15.3348]
[1729415125567,0.1,158.75,158.67,15.3348]
[1729415128971,0.1,158.74,158.67,15.3348]
[1729415129170,0.1,158.75,158.67,15.3348]
[1729415133687,0.1,158.77,158.68,20.0]
[1729415134379,0.1,158.76,158.68,20.0]
[1729415137575,0.2,158.77,158.68,20.0]
[1729415137809,0.1,158.76,158.68,20.0]
[1729415138383,15.4684,158.76,158.67,15.3348]
[1729415138792,0.1,158.75,158.67,15.3348]
[1729415139295,0.1,158.74,158.67,15.3348]
[1729415139680,0.1,158.74,158.66,6.54025516]
[1729415139876,0.2,158.74,158.64,20.0]
[1729415140088,0.1,158.73,158.64,20.0]
[1729415140787,0.2,158.73,158.64,20.0]
[1729415141097,6.0545,158.72,158.64,20.0]
[1729415141487,15.4684,158.71,158.62,6.54260177]
[1729415141798,0.1,158.7,158.59,22.5418]
[1729415141980,0.1,158.7,158.59,34.69509733]
[1729415142183,0.1,158.7,158.6,6.303]
[1729415142480,0.1,158.7,158.6,13.52592713]
[1729415143698,0.1,158.7,158.61,20.0]
[1729415144684,0.2,158.7,158.61,20.0]
[1729415149205,0.1,158.7,158.61,20.0]
[1729415149411,0.2,158.7,158.61,20.0]
[1729415150212,15.3684,158.71,158.62,20.0]
[1729415154315,0.1,158.7,158.62,20.0]
[1729415157917,0.1,158.69,158.61,20.0]
[1729415158617,0.1,158.68,158.6,6.53789066]
[1729415161726,0.6942938,158.67,158.6,6.53789066]
[1729415174212,16.3545,158.66,158.6,6.53789066]
[1729415174417,0.1,158.65,158.57,7.22292713]
[1729415174625,0.1,158.65,158.57,2.522296]
[1729415174808,0.1,158.64,158.56,6.54232732]
[1729415180734,0.2,158.65,158.56,6.54232732]
[1729415181031,0.1,158.64,158.56,6.54232732]
[1729415181235,0.2,158.65,158.56,6.54232732]
[1729415181415,0.2,158.64,158.56,6.54232732]
[1729415181816,6.3336,158.64,158.56,6.54232732]
[1729415182012,0.1,158.63,158.56,6.54232732]
[1729415184517,6.3336,158.64,158.56,6.54232732]
[1729415184718,6.1336,158.64,158.56,6.54232732]
[1729415186824,6.2336,158.64,158.56,6.54232732]
[1729415192547,6.1336,158.64,158.56,6.54232732]
[1729415192927,6.2336,158.64,158.56,6.54232732]
[1729415193644,6.2336,158.64,158.57,20.0]
[1729415203956,6.1336,158.64,158.57,20.0]
[1729415204147,6.2336,158.64,158.57,20.0]
[1729415204560,6.1336,158.64,158.57,20.0]
[1729415205756,6.2336,158.64,158.57,20.0]
[1729415207349,6.1336,158.64,158.57,20.0]
[1729415207651,6.2336,158.64,158.57,20.0]
[1729415209034,6.1336,158.64,158.57,20.0]
[1729415209238,6.2336,158.64,158.57,20.0]
[1729415212335,6.92316133,158.64,158.57,20.0]
[1729415215645,6.2336,158.64,158.57,20.0]
[1729415223469,6.1336,158.64,158.57,20.0]
[1729415223673,6.2336,158.64,158.57,20.0]
[1729415224168,6.3336,158.64,158.57,20.0]
[1729415224773,15.984,158.62,158.56,6.54232732]
[1729415224959,16.084,158.62,158.56,6.54232732]
[1729415225150,16.084,158.62,158.53,20.0]
[1729415225344,16.084,158.62,158.53,26.52305377]
[1729415229169,16.184,158.62,158.53,26.52305377]
[1729415229471,0.1,158.6,158.53,6.52305377]
[1729415229862,6.1048,158.6,158.53,6.52305377]
[1729415230062,0.1,158.58,158.53,6.52305377]
[1729415232377,0.1,158.58,158.51,12.80352942]
[1729415232671,16.5542,158.57,158.51,13.74239256]
[1729415232867,16.6542,158.57,158.51,6.51958756]
[1729415233978,16.5542,158.57,158.51,6.51958756]
[1729415234157,16.6542,158.57,158.51,6.51958756]
[1729415235256,16.6542,158.57,158.51,23.776884]
[1729415235870,16.6542,158.57,158.5,43.776884]
[1729415236276,0.1,158.56,158.5,23.776884]
[1729415237768,16.6542,158.57,158.5,23.776884]
[1729415237970,0.1,158.56,158.5,23.776884]
[1729415239391,16.6542,158.57,158.5,23.776884]
[1729415239979,16.5542,158.57,158.5,23.776884]
[1729415240190,0.1,158.59,158.52,23.776884]
[1729415240561,0.1,158.58,158.52,23.776884]
[1729415241166,0.1,158.59,158.52,23.776884]
[1729415241775,0.1,158.58,158.52,23.776884]
[1729415241967,0.1,158.59,158.52,23.776884]
[1729415247492,0.1,158.58,158.52,23.776884]
[1729415248167,0.1,158.59,158.52,23.776884]
[1729415249974,0.1,158.58,158.52,23.776884]
[1729415250188,0.1,158.59,158.52,23.776884]
[1729415253188,0.1,158.58,158.52,23.776884]
[1729415255094,0.1,158.59,158.52,23.776884]
[1729415255267,6.76989985,158.6,158.52,23.776884]
[1729415255467,0.1,158.59,158.52,23.776884]
[1729415258089,6.86989985,158.6,158.52,23.776884]
[1729415258490,0.1,158.59,158.52,23.776884]
[1729415263202,6.84682895,158.6,158.52,23.776884]
[1729415263495,0.1,158.59,158.52,23.776884]
[1729415265216,6.74682895,158.6,158.52,23.776884]
[1729415265583,0.1,158.59,158.52,23.776884]
[1729415270712,6.74682895,158.6,158.52,23.776884]
[1729415271002,0.1,158.59,158.52,23.776884]
[1729415273903,6.84682895,158.6,158.52,23.776884]
[1729415274204,0.1,158.59,158.52,23.776884]
[1729415275488,6.84682895,158.6,158.52,23.776884]
[1729415275695,0.1,158.59,158.52,23.776884]
[1729415279301,6.74682895,158.6,158.52,23.776884]
[1729415279505,0.1,158.59,158.52,23.776884]
[1729415280511,6.84682895,158.6,158.52,23.776884]
[1729415280699,0.1,158.59,158.52,23.776884]